[Event "Ceske Budejovice GM 2022"]
[Site "Ceske Budejovice"]
[Date "2022.07.03"]
[Round "3.5"]
[White "Hollan, Martin"]
[Black "Donchenko, Alexander"]
[Result "0-1"]
[ECO "B18"]
[WhiteElo "2399"]
[BlackElo "2640"]
[Annotator "TA"]
[PlyCount "82"]
[EventDate "2022.07.01"]
[EventType "tourn"]
[EventCountry "CZE"]
[SourceTitle "playchess.com"]
[Source "ChessBase"]
[SourceQuality "1"]
[TimeControl "40/5400+30:1800+30"]

{[%evp 21,81,0,8,-16,0,-12,8,13,14,-8,-6,-8,-8,-8,-10,-6,-2,-4,10,-33,-36,-58,-58,-77,-86,-112,-106,-112,-112,-124,-123,-169,-181,-227,-180,-257,-245,-239,-238,-282,-248,-390,-381,-404,-393,-391,-383,-605,-575,-685,-663,-687,-627,-29989,-29990,-29993,-29994,-29994,-29995,-29996,-29996,-29999]} 1. e4 {[%emt 0:00:03]} c6 {[%emt 0:00:13]} 2. d4 {[%emt 0:00:30]} d5 {[%emt 0:00:09]} 3. Nd2 {[%emt 0:00:42]} dxe4 {[%emt 0:00:31]} 4. Nxe4 {[%emt 0:00:07]} Bf5 {[%emt 0:00:44]} 5. Ng3 {[%emt 0:00:32]} Bg6 {[%emt 0:00:06]} 6. Nh3 {[%emt 0:00:10]} Nf6 {[%emt 0:02:54]} 7. c3 {[%emt 0:04:42]} Nbd7 {[%emt 0:02:23][%cal Bb8d7,Bd7b6,Bb6d5][%mdl 32]} 8. Nf4 {[%emt 0:00:27]} Qc7 {[%emt 0:01:06]} 9. Nxg6 {[%emt 0:04:00]} hxg6 {[%emt 0:00:50]} 10. Bc4 {[%emt 0:00:18]} e6 {[%emt 0:01:15]} 11. Qf3 {[%emt 0:00:19]} Bd6 {[%emt 0:03:39]} 12. Be3 {[%emt 0:04:48] B18: Classical Caro-Kann: 4...Bf5 sidelines.} Nb6 {[%emt 0:06:18]} 13. Bb3 {[%emt 0:00:27]} Nbd5 {[%emt 0:11:07] [#]} 14. Bg5 $146 {[%emt 0:16:25] The position is equal.} ({Predecessor:} 14. O-O-O a5 15. Kd2 a4 16. Bc2 b5 17. h3 Nxe3 18. Qxe3 Bf4 {0-1 (18) Rabenjamina,D-Frelicot,E (1823) Antananarivo 2015}) 14... Bf4 {[%emt 0:09:29]} 15. Bxf6 {[%emt 0:00:57]} gxf6 {[%emt 0:05:07]} 16. Ne2 {[%emt 0:04:13] [#] Bxd5 is the strong threat.} Bg5 {[%emt 0:01:24]} 17. g3 {[%emt 0:10:00]} f5 {[%emt 0:00:45]} 18. Bxd5 {[%emt 0:03:22]} cxd5 {[%emt 0:00:50]} 19. h4 {[%emt 0:02:03]} Bh6 {[%emt 0:06:28]} 20. h5 {[%emt 0:02:35]} g5 {[%emt 0:00:48][%cal Bg6g5,Bg5g4][%mdl 32]} 21. Qd3 {[%emt 0:06:58]} g4 {[%emt 0:01:16]} 22. Qb5+ {[%emt 0:01:04]} Ke7 {[%emt 0:04:22] White is on the road to losing.} 23. b3 {[%emt 0:04:03]} Rh7 {[%emt 0:05:57] Black is more active.} 24. c4 {[%emt 0:03:19]} Qc6 {[%emt 0:01:22]} 25. Qb4+ {[%emt 0:04:59]} Kf6 {[%emt 0:01:08]} 26. c5 {[%emt 0:00:15]} (26. Qc3 $17 {is a better defense.}) 26... b6 $19 {[%emt 0:03:58]} 27. cxb6 {[%emt 0:04:25]} (27. Qc3 $142) 27... axb6 {[%emt 0:00:10]} ({Not} 27... Qxb6 28. Qxb6 axb6 29. a4 $17) 28. Qc3 {[%emt 0:07:58]} (28. Kf1 $142) 28... Rc8 {[%emt 0:02:53][%cal Ba8c8,Bc8c6,Bc6c2,Bc2b2][%mdl 32]} 29. Qxc6 {[%emt 0:02:05]} Rxc6 {[%emt 0:00:08]} 30. Nf4 {[%emt 0:05:49]} Rc2 {[%emt 0:01:44]} 31. O-O {[%emt 0:00:14]} (31. Nd3 {was worth a try.}) 31... Bxf4 {[%emt 0:01:16]} 32. gxf4 {[%emt 0:00:05]} Rxh5 {[%emt 0:00:07][%mdl 4096] Endgame KRR-KRR} 33. Rfc1 {[%emt 0:00:49]} Rb2 {[%emt 0:10:09]} 34. Rc6 {[%emt 0:01:34]} (34. Rcb1 $142 Rxb1+ 35. Rxb1) 34... Rh3 {[%emt 0:01:38]} 35. Rxb6 {[%emt 0:01:41]} Rf3 {[%emt 0:00:03][%csl LRf2,LRf4]} 36. a4 {[%emt 0:01:55]} Rxf4 {[%emt 0:01:33]} 37. a5 {[%emt 0:01:25]} Rfxf2 {[%emt 0:00:18] Black mates.} 38. a6 {[%emt 0:00:59]} f4 {[%emt 0:00:23]} 39. a7 {[%emt 0:01:39]} Rg2+ {[%emt 0:00:09]} 40. Kf1 {[%emt 0:00:22]} Rh2 {[%emt 0:00:07][%cal Rh2h1]} 41. a8=Q {[%emt 0:31:18]} Rh1# {[%emt 0:30:05] Weighted Error Value: White=0.43/Black=0.05 (flawless)} 0-1

[Event "Ceske Budejovice GM 2022"]
[Site "Ceske Budejovice"]
[Date "2022.07.04"]
[Round "4.1"]
[White "Sahidi, Samir"]
[Black "Donchenko, Alexander"]
[Result "1-0"]
[ECO "D38"]
[WhiteElo "2462"]
[BlackElo "2640"]
[Annotator "TA"]
[PlyCount "85"]
[EventDate "2022.07.01"]
[EventType "tourn"]
[EventCountry "CZE"]
[SourceTitle "playchess.com"]
[Source "ChessBase"]
[SourceQuality "1"]
[TimeControl "40/5400+30:1800+30"]

{[%evp 12,85,6,-3,6,-13,-11,-29,3,10,27,0,0,0,2,0,26,19,35,34,23,12,13,21,21,15,16,0,39,39,39,39,39,42,47,45,40,41,48,33,36,33,24,31,26,24,92,91,89,69,46,39,130,147,133,65,118,103,104,101,93,87,134,114,547,540,729,699,890,808,1320,1287,1277,1277,1189,1140]} 1. d4 {[%emt 0:00:04]} Nf6 {[%emt 0:00:06]} 2. Nf3 {[%emt 0:00:35]} d5 {[%emt 0:00:31]} 3. c4 {[%emt 0:00:45]} e6 {[%emt 0:00:08]} 4. Nc3 {[%emt 0:02:17]} Bb4 {[%emt 0:00:49]} 5. e3 {[%emt 0:02:57]} O-O {[%emt 0:00:31]} 6. Qc2 {[%emt 0:02:47]} c5 {[%emt 0:05:19] 6...c5 is better than 6...b6.} 7. a3 {[%emt 0:06:25]} Bxc3+ {[%emt 0:02:00] E38: Nimzo-Indian: Classical: 4...c5.} 8. Qxc3 {[%emt 0:00:59]} cxd4 {[%emt 0:26:06]} 9. Nxd4 {[%emt 0:00:33]} Ne4 {[%emt 0:06:51] Black has an edge.} (9... e5 $5 {[%cal Re5d4]} 10. Nf3 Re8 $11) 10. Qc2 {[%emt 0:01:56]} e5 {[%emt 0:02:19]} 11. Nf3 {[%emt 0:00:47]} (11. cxd5 $5 {[%cal Rc2e4]} Nxf2 12. Qxf2 exd4 13. Bc4 $14) 11... Bf5 {[%emt 0:00:22][%cal Oe4g3]} 12. Bd3 {[%emt 0:00:47]} Nd7 {[%emt 0:00:35] [#] Strongly threatening ...Ndc5.} 13. b4 $146 {[%emt 0:01:46] Prevents Ndc5.} ({Predecessor:} 13. cxd5 Rc8 14. Qe2 Ndc5 15. Bxe4 Bxe4 16. O-O Bd3 17. Qd1 Bxf1 18. Kxf1 e4 19. Ne1 Qd6 20. b4 Qa6+ 21. Qe2 Nd3 22. Nxd3 exd3 23. Qd2 Rc2 {0-1 (23) Nechaeva,M (2424)-Gunina,V (2510) Riadh 2017}) 13... Rc8 {[%emt 0:12:31][%cal Oe4f2]} 14. Bb2 {[%emt 0:09:13]} Bg6 {[%emt 0:21:13]} 15. O-O {[%emt 0:07:52]} ({Reject} 15. Nxe5 Nxe5 16. Bxe5 Re8 $17) 15... Qe7 {[%emt 0:00:04]} 16. Rac1 {[%emt 0:02:39]} Nd6 {[%emt 0:02:22] White must now prevent ...Rxc4.} 17. Bxg6 {[%emt 0:03:43]} hxg6 {[%emt 0:00:16]} 18. c5 {[%emt 0:00:50]} Nc4 {[%emt 0:00:03]} 19. Rfd1 {[%emt 0:01:08]} Nf6 {[%emt 0:00:17]} 20. Nd2 {[%emt 0:01:32]} Nxb2 {[%emt 0:02:18]} 21. Qxb2 {[%emt 0:00:17]} Rc7 {[%emt 0:00:39]} 22. Nf3 {[%emt 0:04:18]} Re8 {[%emt 0:00:24]} 23. h3 {[%emt 0:06:16]} Qe6 {[%emt 0:00:39]} 24. Rc2 {[%emt 0:08:14]} Qf5 {[%emt 0:01:20]} 25. b5 {[%emt 0:03:25]} g5 {[%emt 0:02:42]} 26. c6 {[%emt 0:03:48]} g4 {[%emt 0:00:32]} 27. hxg4 {[%emt 0:00:15]} Qxg4 {[%emt 0:00:12]} 28. Rdc1 {[%emt 0:01:27]} e4 {[%emt 0:04:26]} (28... Qf5 $11 {remains equal.}) 29. Nh2 $1 $16 {[%emt 0:02:36][%cal Bf3h2,Bh2f1,Bf1g3][%mdl 32]} Qh5 {[%emt 0:00:32]} 30. Qd4 {[%emt 0:03:37]} bxc6 {[%emt 0:04:49]} 31. Rxc6 {[%emt 0:01:20]} Rce7 {[%emt 0:00:33]} (31... Rb7 $14) 32. Nf1 $1 {[%emt 0:03:11]} Ng4 {[%emt 0:00:38] [#]} 33. Rc8 {[%emt 0:03:32]} (33. Ng3 $1 $16 {[%cal Rg3h5]} Qg5 34. a4) 33... Rxc8 {[%emt 0:01:10]} ({Black should try} 33... Qf5 $1 $14 34. R8c2 Qe5) 34. Rxc8+ {[%emt 0:00:05]} Kh7 {[%emt 0:00:01]} 35. Ng3 {[%emt 0:01:06] Really sharp!} Qg5 {[%emt 0:01:44]} 36. a4 {[%emt 0:01:38] White is more active.} Re6 {[%emt 0:00:24] [#]} (36... Rd7 $142) 37. Rc6 $1 {[%emt 0:00:26][%cal Bc8c6,Bc6c5,Bc5e5][%mdl 32]} Re5 $2 {[%emt 0:02:01][%mdl 8192] A mistake that costs the game.} (37... Re7 $16) 38. Qxa7 $18 {[%emt 0:01:30] White is clearly winning.} d4 {[%emt 0:01:11]} 39. Qxd4 {[%emt 0:00:46]} Qh4 {[%emt 0:00:41]} 40. Rc5 {[%emt 0:01:05]} Qf6 {[%emt 0:00:39]} 41. Nxe4 {[%emt 0:30:33]} Qh4 {[%emt 0:02:15]} 42. Rxe5 {[%emt 0:00:00] White wants to mate with Ng5+.} Qh2+ {[%emt 0:00:07]} 43. Kf1 {[%emt 0:00:00] Weighted Error Value: White=0.05 (flawless) /Black=0.41} 1-0

[Event "Ceske Budejovice GM 2022"]
[Site "Ceske Budejovice"]
[Date "2022.07.04"]
[Round "4.2"]
[White "Malinovsky, Karel"]
[Black "Hollan, Martin"]
[Result "1-0"]
[ECO "C60"]
[WhiteElo "2463"]
[BlackElo "2399"]
[Annotator "TA"]
[PlyCount "81"]
[EventDate "2022.07.01"]
[EventType "tourn"]
[EventCountry "CZE"]
[SourceTitle "playchess.com"]
[Source "ChessBase"]
[SourceQuality "1"]
[TimeControl "40/5400+30:1800+30"]

{[%evp 9,81,20,29,27,21,14,16,28,37,28,41,0,19,3,10,20,15,20,49,26,45,41,42,42,64,63,65,39,41,60,63,7,8,0,99,97,104,101,96,80,126,121,109,94,100,47,44,59,139,112,112,107,114,80,80,47,90,90,91,90,115,122,118,115,204,196,292,276,286,300,421,352,514,436]} 1. e4 {[%emt 0:00:03]} e5 {[%emt 0:00:11]} 2. Nf3 {[%emt 0:00:07]} Nc6 {[%emt 0:00:09]} 3. Bb5 {[%emt 0:00:06]} Nge7 {[%emt 0:00:27]} 4. Nc3 {[%emt 0:01:04]} Ng6 {[%emt 0:01:57]} 5. d4 {[%emt 0:01:12]} exd4 {[%emt 0:00:28]} 6. Nxd4 {[%emt 0:00:16] C60: Ruy Lopez: Unusual Black 3rd moves and 3...g6.} Nxd4 {[%emt 0:00:13] is more profitable than 6...Bc5 at the moment.} 7. Qxd4 {[%emt 0:00:07]} c6 {[%emt 0:00:08]} 8. Be2 {[%emt 0:02:36] The position is equal.} Qb6 {[%emt 0:00:30]} 9. Qd3 {[%emt 0:00:44]} Be7 {[%emt 0:00:35]} 10. O-O {[%emt 0:02:34]} O-O {[%emt 0:01:10]} 11. a4 {[%emt 0:00:49]} d6 {[%emt 0:01:52]} 12. a5 {[%emt 0:00:32]} Qd8 {[%emt 0:00:20] [#]} 13. Be3 $146 {[%emt 0:19:46]} ({Predecessor:} 13. f4 f5 14. Bf3 Be6 15. Be3 Qd7 16. g3 Bf6 17. Rad1 Rad8 18. Bxa7 Bxc3 19. Qxc3 fxe4 20. Bxe4 {1-0 (44) Vokhidov,S (2530)-Kuybokarov,T (2549) Chess.com INT 2021}) 13... Kh8 {[%emt 0:05:28]} 14. Bh5 {[%emt 0:16:25]} f5 {[%emt 0:10:35]} 15. Bxg6 {[%emt 0:05:08]} hxg6 {[%emt 0:00:05]} 16. Qd2 {[%emt 0:01:38]} fxe4 {[%emt 0:15:23]} 17. Nxe4 {[%emt 0:00:31]} d5 {[%emt 0:12:03]} 18. Bc5 {[%emt 0:09:35]} Bxc5 {[%emt 0:04:50]} 19. Nxc5 {[%emt 0:00:06]} Qf6 {[%emt 0:02:11]} 20. Qb4 {[%emt 0:07:13] White is more active.} ({White should play} 20. c3 $14) 20... Rb8 $11 {[%emt 0:10:49]} 21. Na6 {[%emt 0:04:23]} c5 {[%emt 0:09:19]} (21... Ra8 $11 22. Nc5 Rb8) 22. Nxc5 $16 {[%emt 0:01:44][%cal Oc5a6]} b6 {[%emt 0:00:05]} 23. Nd3 {[%emt 0:07:20]} Bf5 {[%emt 0:00:53]} 24. Qd2 {[%emt 0:05:06]} Rbc8 {[%emt 0:08:54]} ({Black should try} 24... bxa5 25. Rxa5 Qd4) 25. axb6 {[%emt 0:03:03]} axb6 {[%emt 0:00:16]} 26. Ra4 {[%emt 0:03:10]} Rc4 {[%emt 0:00:54]} 27. b3 {[%emt 0:02:14]} (27. Rfa1 $16) 27... Rxa4 $14 {[%emt 0:03:48]} 28. bxa4 {[%emt 0:00:03]} Qc6 {[%emt 0:05:35]} (28... Ra8 $14) 29. Nb4 {[%emt 0:02:34][%csl LRc6,LRd5]} Qxa4 {[%emt 0:00:27]} 30. c3 {[%emt 0:00:06]} Rc8 {[%emt 0:02:53]} 31. h3 {[%emt 0:01:45]} (31. Qxd5 $6 Rxc3 32. Qd4 Rd3 33. Qh4+ (33. Qxb6 Rd1 $11) 33... Kg8 $11) 31... Qb3 {[%emt 0:01:05]} 32. Rc1 {[%emt 0:01:35]} ({Reject} 32. Nxd5 Rd8 33. c4 (33. Rd1 $2 Be6 $19) 33... Qxc4 $11) 32... Be6 {[%emt 0:01:31]} 33. Re1 {[%emt 0:01:46]} Bf7 {[%emt 0:01:20]} 34. Re3 $36 {[%emt 0:00:39][%mdl 2048] White has strong initiative.} Qb1+ {[%emt 0:00:20] [#]} 35. Kh2 $1 {[%emt 0:00:16] aiming for Rf3.} Qf5 {[%emt 0:00:12]} 36. Nd3 {[%emt 0:01:02]} d4 {[%emt 0:00:57]} (36... Qf6 $16) 37. cxd4 $18 {[%emt 0:00:40]} Bd5 {[%emt 0:00:07]} (37... Kg8 {might work better.} 38. Rf3 Qe6) 38. Re5 {[%emt 0:00:30]} Qf7 {[%emt 0:00:01]} 39. Nf4 {[%emt 0:00:41]} Bb3 {[%emt 0:00:09]} (39... Rd8 {keeps fighting.} 40. Kg3 (40. Rxd5 Rxd5 41. Nxd5 Qxd5 $16) 40... Ba2) 40. Qe3 {[%emt 0:00:31] [#] And now d5 would win.} Bc2 {[%emt 0:01:46]} (40... Rf8 $142) 41. Ne6 {[%emt 0:07:38] Weighted Error Value: White=0.15 (very precise) /Black=0.26 (precise)} 1-0

[Event "Ceske Budejovice GM 2022"]
[Site "Ceske Budejovice"]
[Date "2022.07.04"]
[Round "4.3"]
[White "Stefansson, Hannes"]
[Black "Vykouk, Jan"]
[Result "0-1"]
[ECO "E91"]
[WhiteElo "2541"]
[BlackElo "2476"]
[Annotator "TA"]
[PlyCount "150"]
[EventDate "2022.07.01"]
[EventType "tourn"]
[EventCountry "CZE"]
[SourceTitle "playchess.com"]
[Source "ChessBase"]
[SourceQuality "1"]
[TimeControl "40/5400+30:1800+30"]

{[%evp 20,150,47,32,69,50,50,49,50,50,45,30,47,-4,0,0,0,0,0,4,6,-9,0,-15,31,0,25,31,43,32,39,25,48,55,75,81,93,94,110,14,31,43,29,-8,-8,-8,-8,-134,-129,-138,-134,-129,-127,-133,-150,-139,-91,-96,-96,-89,-42,-112,-110,-109,-41,-50,-17,-30,-15,-14,-8,-8,0,-10,-10,-10,-11,-37,-37,-37,-37,-37,-37,-60,-66,-86,-89,-219,-219,-195,-211,-215,-102,-104,-116,-110,-74,-74,-74,-74,-74,-102,-102,-102,-102,-102,-102,-108,-102,-102,-102,-153,-102,-108,-77,-108,-73,-73,-68,-128,-127,-128,-128,-131,-132,-966,-943,-1583,-674,-6073,-6073,-4570,-4570]} 1. d4 {[%emt 0:00:07]} Nf6 {[%emt 0:00:06]} 2. c4 {[%emt 0:00:19]} g6 {[%emt 0:00:06]} 3. Nc3 {[%emt 0:00:21]} Bg7 {[%emt 0:00:06]} 4. e4 {[%emt 0:00:32]} d6 {[%emt 0:00:04]} 5. Nf3 {[%emt 0:00:37]} O-O {[%emt 0:00:27]} 6. Be2 {[%emt 0:00:28]} Nbd7 {[%emt 0:00:23]} 7. O-O {[%emt 0:01:21]} e5 {[%emt 0:00:03]} 8. Qc2 {[%emt 0:02:34]} Re8 {[%emt 0:01:01]} 9. d5 {[%emt 0:04:15]} a5 {[%emt 0:00:04]} 10. Bg5 {[%emt 0:07:51]} Nc5 {[%emt 0:02:19]} 11. Nd2 {[%emt 0:01:34] [#]} Bf8 $146 {[%emt 0:07:26] E94: King's Indian: Classical: 6 Be2 e5 7 0-0: Various Black 7th moves.} ({Predecessor:} 11... Bd7 12. b3 c6 13. a3 cxd5 14. cxd5 Qc8 15. Qb2 Qb8 16. b4 Na6 17. bxa5 Nc5 18. Be3 Rc8 19. Nc4 Ra7 20. Rfc1 Nfxe4 21. Nxe4 Nxe4 22. Nb6 Rd8 23. Nxd7 Rxd7 24. Bxa7 Qxa7 25. Rc8+ Bf8 26. Qb6 {1-0 (26) Anton Guijarro,D (2550)-Stegariu,V (2223) Maribor 2012}) 12. b3 {[%emt 0:05:15]} Be7 {[%emt 0:00:05][%cal Of6d5]} 13. Be3 $1 {[%emt 0:04:51]} Ng4 {[%emt 0:02:36] White is slightly better.} 14. Bxg4 {[%emt 0:00:18]} Bxg4 {[%emt 0:00:03]} 15. a3 {[%emt 0:01:18]} (15. Bxc5 $5 dxc5 16. h3 $11) 15... Bg5 {[%emt 0:00:53]} 16. b4 {[%emt 0:05:55]} (16. Bxc5 $14 dxc5 17. h3) 16... Bxe3 $11 {[%emt 0:02:14]} 17. fxe3 {[%emt 0:00:06]} axb4 {[%emt 0:00:38]} 18. axb4 {[%emt 0:00:06] Strongly threatening Rxa8.} Rxa1 {[%emt 0:03:54]} 19. Rxa1 {[%emt 0:00:06]} Na6 {[%emt 0:00:03]} 20. Qb2 {[%emt 0:03:55]} Qg5 {[%emt 0:01:35]} 21. Nf1 {[%emt 0:03:07][%cal Oc4c5]} f5 {[%emt 0:03:12]} (21... Rf8 $11) 22. exf5 {[%emt 0:03:20]} (22. c5 $5 {[%cal Rc5c6]}) 22... gxf5 {[%emt 0:00:07][%cal Bg6f5,Bf5f4,Bf4f3][%mdl 32]} (22... Bxf5 $5 {[%cal Rf5d3]} 23. e4 Bc8 $11) 23. c5 {[%emt 0:03:07]} f4 {[%emt 0:06:12]} 24. c6 {[%emt 0:06:24]} Bc8 {[%emt 0:01:54]} 25. Nd2 {[%emt 0:07:36]} f3 {[%emt 0:01:05][%csl Gf3][%cal Rg5g2]} 26. Nde4 {[%emt 0:00:22]} Qxe3+ {[%emt 0:00:11]} 27. Qf2 {[%emt 0:00:05]} (27. Kh1 Rf8 28. cxb7 Bxb7 29. gxf3 Kh8 $17) 27... Qxf2+ {[%emt 0:00:56]} 28. Kxf2 {[%emt 0:00:06]} Rf8 {[%emt 0:00:28]} 29. b5 {[%emt 0:00:27]} (29. Ra4 $1 $16) 29... fxg2+ {[%emt 0:02:15]} 30. Kxg2 {[%emt 0:00:05]} Nb4 $1 {[%emt 0:01:15]} 31. Ra7 {[%emt 0:02:21]} bxc6 {[%emt 0:01:33]} 32. bxc6 {[%emt 0:02:08]} Bf5 {[%emt 0:07:29][%cal Ob4d5]} 33. Nd2 {[%emt 0:13:40]} (33. Rxc7 $11 {keeps the balance.} Nxd5 34. Rb7) 33... Rf7 $17 {[%emt 0:07:15]} 34. Kg3 {[%emt 0:02:26]} Bd3 $1 {[%emt 0:02:14]} 35. Rb7 {[%emt 0:01:17]} Nc2 {[%emt 0:01:20]} 36. Nde4 {[%emt 0:01:24]} Nd4 {[%emt 0:04:45]} 37. Ng5 {[%emt 0:01:54]} Re7 {[%emt 0:01:04]} ({Black should play} 37... Rf5 38. h4 h6) 38. Kf2 {[%emt 0:04:14]} h6 {[%emt 0:04:03]} 39. Ke3 {[%emt 0:01:30]} Bc4 {[%emt 0:01:08]} ({Reject} 39... hxg5 $6 40. Kxd3 Rh7 41. Ne4 Rh3+ 42. Kc4 $11) (39... Ba6 $17 40. Ra7 Bf1) 40. Nge4 {[%emt 0:05:00]} (40. Nf3 $15) 40... Rf7 {[%emt 0:02:19]} 41. Kd2 {[%emt 0:34:04][%cal Oe4d6]} Nf5 {[%emt 0:41:26]} (41... Ba6 $1 $17 42. Ra7 Bf1) 42. Rb4 $15 {[%emt 0:03:05]} Bf1 {[%emt 0:01:11]} 43. Nb5 {[%emt 0:00:00]} Bxb5 {[%emt 0:00:00]} (43... Kh7 {seems wilder.} 44. Nxc7 Rxc7 45. Rb7 Rg7) 44. Rxb5 $11 {[%emt 0:00:00][%mdl 4096] Endgame KRN-KRN} Ne7 {[%emt 0:00:00]} 45. Nc3 {[%emt 0:00:00]} Rf2+ {[%emt 0:00:00]} 46. Kd1 {[%emt 0:00:00]} Nf5 {[%emt 0:00:00]} 47. Rb8+ {[%emt 0:00:00]} Kg7 {[%emt 0:00:00] Threatens to win with ...Ne3+.} 48. Rb7 {[%emt 0:00:00]} (48. Ke1 $5 {[%cal Re1f2]} Rxh2 49. Rc8 $15) 48... Ne3+ {[%emt 0:00:00]} 49. Ke1 {[%emt 0:00:00]} Rc2 {[%emt 0:00:00]} 50. Rxc7+ {[%emt 0:00:00]} Kg6 {[%emt 0:00:00]} 51. Nb5 {[%emt 0:00:00]} Nxd5 {[%emt 0:00:00]} 52. Rd7 {[%emt 0:00:00]} Rxc6 {[%emt 0:00:00]} 53. Nxd6 {[%emt 0:00:00]} (53. Rxd6+ $17 Rxd6 54. Nxd6) 53... Nf6 $19 {[%emt 0:00:00]} 54. Rd8 {[%emt 0:00:00]} Rc2 {[%emt 0:00:00]} 55. Ne8 {[%emt 0:00:00]} Ne4 {[%emt 0:00:00] Against Rd6+} (55... Nxe8 $1 $19 {is more deadly.} 56. Rxe8 Kf5) 56. Nd6 $17 {[%emt 0:00:00]} Ng5 {[%emt 0:00:48] Black is more active.} 57. Rg8+ {[%emt 0:00:00]} Kf6 {[%emt 0:00:41]} 58. h4 {[%emt 0:00:00]} Nf3+ {[%emt 0:00:19]} 59. Kf1 {[%emt 0:00:00]} Nxh4 {[%emt 0:00:37]} 60. Rh8 {[%emt 0:00:00]} Kg7 {[%emt 0:02:47]} 61. Re8 {[%emt 0:00:00]} Ng6 {[%emt 0:00:41]} 62. Nf5+ {[%emt 0:00:00]} Kf7 {[%emt 0:13:15]} 63. Ra8 {[%emt 0:00:00]} h5 {[%emt 0:00:16]} 64. Ra6 {[%emt 0:00:00]} Nf4 {[%emt 0:00:14]} 65. Rh6 {[%emt 0:00:32] [#]} (65. Nh6+ $142 Ke8 66. Nf5) 65... Rh2 {[%emt 0:03:25]} (65... Rc3 $142 $1 {[%cal Rc3f3] aiming for ...Rf3+.} 66. Kf2 e4 67. Nd6+ Kg7 68. Nf5+ Kg8) 66. Nd6+ {[%emt 0:00:31]} Ke7 {[%emt 0:00:07]} 67. Nf5+ {[%emt 0:00:14]} Kd7 {[%emt 0:00:11]} 68. Rd6+ {[%emt 0:00:20]} Kc7 {[%emt 0:00:05]} 69. Ra6 {[%emt 0:01:28]} ({Better is} 69. Rh6 $15) 69... h4 {[%emt 0:00:43][%cal Bh5h4,Bh4h3][%mdl 32]} 70. Rh6 {[%emt 0:04:52]} h3 {[%emt 0:00:12]} 71. Ne3 {[%emt 0:00:06]} Ra2 {[%emt 0:01:35] ...h2 is the strong threat.} 72. Ng4 $2 {[%emt 0:00:53][%mdl 8192] [#] Against h2} (72. Kg1 $17) 72... e4 $1 $19 {[%emt 0:03:14][%cal Be5e4,Be4e3][%mdl 32] Black is clearly winning.} 73. Rf6 {[%emt 0:00:45]} Nh5 {[%emt 0:01:46]} (73... Ra1+ $142 74. Kf2 e3+ 75. Nxe3 h2 76. Rf7+ Kd6) 74. Rh6 {[%emt 0:00:15]} Ng3+ {[%emt 0:00:16]} 75. Ke1 {[%emt 0:00:05]} e3 $1 {[%emt 0:01:21] Weighted Error Value: White=0.19 (very precise) /Black=0.13 (very precise)} ({Weaker is} 75... Re2+ 76. Kd1 $15) 0-1

[Event "Ceske Budejovice GM 2022"]
[Site "Ceske Budejovice"]
[Date "2022.07.04"]
[Round "4.4"]
[White "Omelja, Artem"]
[Black "Morgunov, Marc"]
[Result "1/2-1/2"]
[ECO "E97"]
[WhiteElo "2478"]
[BlackElo "2376"]
[Annotator "TA"]
[PlyCount "70"]
[EventDate "2022.07.01"]
[EventType "tourn"]
[EventCountry "CZE"]
[SourceTitle "playchess.com"]
[Source "ChessBase"]
[SourceQuality "1"]
[TimeControl "40/5400+30:1800+30"]

{[%evp 21,70,28,19,-4,25,21,24,30,55,55,55,56,58,27,19,28,32,25,20,20,21,18,18,18,22,20,23,20,15,14,17,16,16,0,0,0,0,0,6,0,0,0,0,0,0,0,1,0,0,0,0]} 1. Nf3 {[%emt 0:00:04]} Nf6 {[%emt 0:00:20]} 2. c4 {[%emt 0:00:07]} g6 {[%emt 0:00:16]} 3. Nc3 {[%emt 0:00:09]} Bg7 {[%emt 0:00:05]} 4. e4 {[%emt 0:00:13]} d6 {[%emt 0:00:17]} 5. d4 {[%emt 0:00:09]} O-O {[%emt 0:00:08]} 6. Be2 {[%emt 0:00:31]} e5 {[%emt 0:00:11]} 7. O-O {[%emt 0:00:15]} Nc6 {[%emt 0:00:26]} 8. d5 {[%emt 0:00:21]} Ne7 {[%emt 0:00:27]} 9. b4 {[%emt 0:00:12][%cal Bb2b4,Bb4b5][%mdl 32]} Nh5 {[%emt 0:01:37]} 10. g3 {[%emt 0:00:27]} f5 {[%emt 0:03:22]} 11. Ng5 {[%emt 0:00:14]} Nf6 {[%emt 0:02:48]} 12. Bf3 {[%emt 0:00:13] E97: King's Indian: Classical Main Line (6...e5 7 0-0 Nc6): 8 Be3 and 8 d5 Ne7, not 9 Ne1.} (12. f3 {with more complications.} c6 13. Rb1 h6 14. Ne6) 12... c6 {[%emt 0:06:11]} 13. b5 {[%emt 0:29:49]} cxd5 {[%emt 0:10:44]} 14. cxd5 {[%emt 0:02:30] White has an edge.} ({But not} 14. Nxd5 h6 15. Nxf6+ Bxf6 $17) (14. exd5 e4 15. Be2 Ne8 $11) 14... h6 {[%emt 0:01:00]} 15. Ne6 {[%emt 0:00:12]} Bxe6 {[%emt 0:00:06]} 16. dxe6 {[%emt 0:00:06]} fxe4 {[%emt 0:01:12]} 17. Nxe4 {[%emt 0:00:59]} (17. Bg2 {is interesting.} Rc8 18. Qb3 Kh7 19. Nxe4 d5 20. Nxf6+ Rxf6 21. Bb2) 17... Nxe4 {[%emt 0:00:33]} 18. Bxe4 {[%emt 0:00:08] Hoping for Ba3. A strong pair of Bishops.} d5 {[%emt 0:00:12] [#]} 19. Ba3 $1 {[%emt 0:02:06] Strongly threatening Bxe7.} dxe4 {[%emt 0:00:15]} 20. Qxd8 {[%emt 0:00:18][%mdl 64] Remove Defender} Rfxd8 {[%emt 0:00:05]} 21. Bxe7 {[%emt 0:00:08]} Re8 {[%emt 0:00:57]} 22. Bc5 {[%emt 0:00:50]} Rxe6 {[%emt 0:00:43]} 23. Rfd1 {[%emt 0:03:28]} a6 {[%emt 0:04:56] [#]} 24. Rab1 $146 {[%emt 0:03:31]} ({Predecessor:} 24. b6 Rc8 25. Be3 Kf7 26. Rac1 Rxc1 27. Rxc1 Re7 28. Rc4 Ke6 29. Rxe4 Kd5 30. Rg4 {½-½ (69) Nazaretyan,T (2316)-Najdin,D (2285) Tuapse 2021}) 24... b6 {[%emt 0:09:08] The position is equal.} 25. Be3 {[%emt 0:02:13]} axb5 {[%emt 0:00:32]} 26. Rxb5 {[%emt 0:10:05]} Rxa2 {[%emt 0:01:02]} 27. Rd8+ {[%emt 0:00:09]} Kf7 {[%emt 0:03:58]} 28. Bxb6 {[%emt 0:01:25]} Bf6 {[%emt 0:00:58]} 29. Rc8 {[%emt 0:04:11]} Re8 {[%emt 0:04:12]} 30. Rxe8 {[%emt 0:02:41]} Kxe8 $11 {[%emt 0:00:13] KRB-KRB} 31. Be3 {[%emt 0:03:05]} h5 {[%emt 0:04:03]} 32. Rb4 {[%emt 0:00:57]} Kf7 {[%emt 0:01:49]} 33. Rxe4 {[%emt 0:00:08]} Ke6 {[%emt 0:00:49]} 34. Kg2 {[%emt 0:00:44]} Kf5 {[%emt 0:00:31]} 35. Kf3 {[%emt 0:00:48]} Ra3 {[%emt 0:00:57] Weighted Error Value: White=0.03 (flawless) /Black=0.03 (flawless)} 1/2-1/2